bitfinex-derivatives/quotes_ETHF0:USTF0_20260303
["timestamp","ask_amount","ask_price","bid_price","bid_amount"]
[1772541251299,1.02319671,1970.3,1969.8,1.0082716]
[1772541251800,1.02319671,1970.5,1969.8,1.0082716]
[1772541254304,1.02319671,1970.5,1969.7,0.43335509]
[1772541254498,6.58621076,1970.4,1969.8,1.0082716]
[1772541254699,1.02319671,1970.5,1969.8,1.0082716]
[1772541255207,7.66519671,1970.7,1969.8,1.0082716]
[1772541255504,1.02319671,1971.1,1970.0,1.0082716]
[1772541255700,1.02319671,1971.1,1970.0,1.0090716]
[1772541258607,1.00764358,1970.7,1970.0,0.0008]
[1772541260306,0.97743706,1970.5,1970.0,0.0008]
[1772541260908,0.97743706,1970.5,1970.0,0.97750424]
[1772541262815,0.97743706,1970.5,1970.0,0.0008]
[1772541263016,0.97743706,1970.5,1969.7,0.43335509]
[1772541263216,0.97743706,1970.3,1969.7,0.43335509]
[1772541264012,0.97743706,1970.2,1969.7,0.43335509]
[1772541264213,0.74701954,1970.0,1969.5,0.0008]
[1772541265215,0.74701954,1970.0,1969.5,0.00663812]
[1772541265819,0.74701954,1970.0,1969.5,0.98334236]
[1772541266712,0.74701954,1970.0,1969.5,0.00663812]
[1772541267219,0.74701954,1970.0,1969.5,0.98334236]
[1772541268320,0.74701954,1970.0,1969.5,0.00663812]
[1772541268719,0.74701954,1970.0,1969.2,0.77060288]
[1772541268923,0.74701954,1970.0,1969.2,1.74730712]
[1772541269121,0.74701954,1970.0,1969.3,0.97670424]
[1772541269621,0.74701954,1970.0,1969.2,0.77060288]
[1772541269622,0.68224511,1969.8,1969.2,0.77060288]
[1772541269818,0.68121334,1969.7,1968.9,0.97670424]
[1772541270024,8.95597499,1969.7,1968.7,1.02993098]
[1772541270323,2.38053109,1969.7,1968.7,1.02993098]
[1772541270518,0.04723368,1969.5,1968.7,1.02993098]
[1772541271024,0.04723368,1969.5,1968.7,1.03429421]
[1772541273124,6.644,1969.6,1968.7,0.00436323]
[1772541273125,0.0331634,1969.3,1968.7,0.00436323]
[1772541273628,0.0331634,1969.3,1968.5,0.0008]
[1772541273827,0.0331634,1969.3,1968.5,1.03086934]
[1772541274723,0.0331634,1969.3,1968.5,1.03548775]
[1772541275527,0.07713613,1969.5,1968.5,1.03548775]
[1772541275817,6.644,1969.6,1968.5,1.03548775]
[1772541275818,0.07860664,1969.4,1968.5,1.03548775]
[1772541276021,0.02531003,1969.3,1968.5,1.03548775]
[1772541277327,0.02681695,1969.2,1968.5,0.00541841]
[1772541277627,6.645,1969.1,1968.5,1.06003496]
[1772541277826,4.50276844,1969.6,1968.5,1.06003496]
[1772541277827,0.03222584,1969.5,1968.5,1.06003496]
[1772541278022,0.03222584,1969.5,1968.5,1.05923496]
[1772541280726,0.03794085,1969.3,1968.5,1.05923496]
[1772541283732,0.0413793,1969.5,1968.5,1.05923496]
[1772541284222,0.03093716,1969.4,1968.5,1.05923496]
[1772541285221,0.03185046,1969.0,1968.3,1.05654973]
[1772541285526,0.03185046,1969.0,1968.3,1.05734973]
[1772541286229,0.03185046,1969.0,1968.3,1.06167972]
[1772541286430,0.03220049,1969.3,1968.3,1.06167972]
[1772541287926,0.05201844,1969.2,1968.3,1.06167972]
[1772541288329,6.61741113,1969.4,1968.3,1.06167972]
[1772541289027,0.05268297,1969.3,1968.3,1.06167972]
[1772541290334,6.56539269,1969.4,1968.3,1.06167972]
[1772541290634,6.6877657,1969.5,1968.3,1.06167972]
[1772541290927,0.04332105,1969.4,1968.3,1.06167972]
[1772541291128,0.04332105,1969.3,1968.3,1.06167972]
[1772541291530,0.04332105,1969.2,1968.3,1.06167972]
[1772541292431,0.03506977,1969.3,1968.3,1.06167972]
[1772541293630,6.57543277,1969.4,1968.3,1.06167972]
[1772541294028,6.645,1969.6,1968.4,0.25405]
[1772541294336,0.00622007,1969.8,1968.9,1.0401718]
[1772541294536,1.03088641,1970.1,1969.0,1.2941418]
[1772541295136,1.03088641,1970.3,1969.0,1.2941418]
[1772541295538,1.03640392,1970.3,1969.0,1.0401718]
[1772541296337,1.03088641,1970.1,1969.0,1.0401718]
[1772541297136,1.03640392,1970.3,1969.0,1.0401718]
[1772541297341,1.03088641,1970.2,1969.0,1.0401718]
[1772541299843,6.64951751,1970.3,1969.2,1.0401718]
[1772541300234,0.00551751,1970.3,1969.3,0.25394]
[1772541300438,0.00551751,1970.3,1969.5,1.0401718]
[1772541300947,1.03088641,1970.7,1969.5,7.6841718]
[1772541301135,1.03088641,1970.7,1969.6,1.0401718]
[1772541302048,1.03517773,1970.7,1969.6,1.0401718]
[1772541302744,0.00429132,1970.7,1969.6,1.0401718]
[1772541303147,1.03517773,1970.7,1969.6,1.0401718]
[1772541305859,1.03088641,1971.1,1969.8,1.0401718]
[1772541306058,1.03088641,1971.1,1969.9,1.0401718]
[1772541306553,1.03088641,1971.1,1970.1,1.0401718]
[1772541306953,1.03487067,1971.1,1970.1,1.04388245]
[1772541307149,0.00398426,1971.1,1970.1,1.04388245]
[1772541307348,0.00398426,1971.1,1970.1,1.29770245]
[1772541307555,1.03088641,1971.5,1970.1,1.29770245]
[1772541308648,1.03590846,1971.5,1970.1,1.29770245]
[1772541310063,1.03088641,1971.4,1970.3,1.0401718]
[1772541310250,1.03088641,1971.4,1970.4,1.0401718]
[1772541310853,0.25368,1971.3,1970.4,1.0401718]
[1772541311050,1.03088641,1971.2,1970.4,1.0401718]
[1772541312363,1.03088641,1971.4,1970.4,1.0401718]
[1772541313158,1.28455641,1971.4,1970.3,1.81588695]
[1772541313560,1.03088641,1970.9,1970.1,0.00371065]
[1772541314163,1.03088641,1970.7,1969.8,0.75853412]
[1772541315261,1.03088641,1970.7,1969.8,0.76453802]
[1772541315463,1.03088641,1970.5,1969.8,0.76453802]
[1772541316266,6.24219,1970.8,1969.4,1.81162003]
[1772541316267,1.03088641,1970.3,1969.4,1.81162003]
[1772541317065,1.03088641,1970.3,1969.5,1.0401718]
[1772541317266,1.03088641,1970.3,1969.5,1.04419635]
[1772541318466,1.18705642,1970.8,1969.5,1.04419635]
[1772541319162,1.18705642,1970.8,1969.7,1.12968314]
[1772541319366,1.18705642,1970.8,1969.8,1.12968314]
[1772541319869,1.19588588,1971.3,1969.9,1.23056234]
[1772541322071,1.19588588,1971.3,1970.1,1.23056234]
[1772541323176,1.19588588,1971.1,1970.1,1.23056234]
[1772541327367,1.19588588,1970.9,1969.8,0.74709612]
[1772541327569,1.19588588,1970.5,1969.8,0.74709612]
[1772541327767,6.4959625,1970.4,1969.9,1.23056234]
[1772541327971,1.19588588,1970.6,1969.9,1.23056234]
[1772541333579,1.19588588,1970.8,1969.9,1.23056234]
[1772541333779,1.19588588,1970.6,1969.9,1.23056234]
[1772541335880,1.19588588,1970.4,1969.8,0.74709612]
[1772541338675,1.19588588,1970.2,1969.8,0.74709612]
[1772541339185,1.19588588,1970.2,1969.5,1.23458689]
[1772541342089,5.43582526,1970.6,1969.5,1.23458689]
[1772541342284,6.53038499,1970.5,1969.5,1.23458689]
[1772541342785,1.19588588,1970.6,1969.5,1.23458689]
[1772541343685,6.53169725,1970.5,1969.5,1.23458689]
[1772541343893,1.19588588,1970.6,1969.5,1.23458689]
[1772541344387,1.19588588,1970.4,1969.5,1.23458689]
[1772541357701,1.19659545,1970.2,1969.5,1.23458689]
[1772541360398,1.19659545,1970.5,1969.5,1.23458689]
[1772541360592,7.74703799,1970.4,1969.5,1.23458689]
[1772541360799,1.19659545,1970.5,1969.5,1.23458689]
[1772541361604,1.19659545,1970.5,1969.6,1.22883396]
[1772541361903,1.19659545,1970.3,1969.5,1.23285851]
[1772541362098,1.19659545,1970.1,1969.5,0.00402455]
[1772541362301,1.20171787,1970.1,1969.5,0.00402455]
[1772541362497,1.19659545,1969.9,1969.5,0.00402455]
[1772541363605,0.00512242,1970.1,1969.0,1.22883396]
[1772541363606,0.61007068,1969.7,1969.0,1.22883396]
[1772541363800,0.66893177,1969.6,1968.9,0.75586115]
[1772541364103,0.66893177,1969.4,1968.9,0.75586115]
[1772541364501,0.66893177,1969.4,1968.9,0.75985762]
[1772541365204,0.66893177,1969.4,1968.7,1.22883396]
[1772541365399,0.66893177,1969.4,1968.4,1.22883396]
[1772541365604,0.6608324,1969.2,1968.4,1.22883396]
[1772541366302,0.6608324,1969.2,1968.4,1.23370128]
[1772541368302,0.69498823,1969.4,1968.4,1.23370128]
[1772541368699,0.69515124,1969.7,1968.4,1.23370128]
[1772541371609,0.69515124,1969.7,1968.5,1.22883396]
[1772541371810,0.69515124,1969.7,1968.6,1.22883396]
[1772541372708,6.647,1969.8,1968.6,1.22883396]
[1772541372709,0.69738795,1969.5,1968.6,1.22883396]
[1772541375912,0.67847275,1969.6,1968.6,1.22883396]
[1772541376113,0.67847275,1969.4,1968.6,1.22883396]
[1772541376507,0.67847275,1969.4,1968.5,0.77186787]
[1772541377206,0.6783271,1969.1,1968.5,0.77186787]
[1772541377403,0.6783271,1969.1,1968.4,0.00486732]
[1772541377404,0.6783271,1969.1,1968.4,1.23370128]
[1772541377607,0.6783271,1969.1,1968.4,1.98490301]
[1772541377907,0.6783271,1969.1,1968.4,0.75606905]
[1772541378412,0.6783271,1969.1,1968.3,0.0008]
[1772541378613,0.6783271,1969.1,1968.3,1.14774496]
[1772541378814,0.78320448,1969.0,1968.3,1.14774496]
[1772541379010,0.78320448,1969.0,1968.4,1.14694496]
[1772541379312,0.78320448,1969.0,1968.4,1.15251805]
[1772541379511,0.78320448,1969.0,1968.3,0.75449292]
[1772541379913,0.78320448,1969.0,1968.3,1.91953869]
[1772541380311,0.78320448,1969.0,1968.3,0.75449292]
[1772541380515,0.78320448,1969.0,1968.3,0.75968103]
[1772541380917,0.78087381,1968.8,1968.1,1.16504577]
[1772541381806,0.78087381,1968.8,1967.3,6.647]
[1772541381807,0.8230097,1968.6,1967.3,1.16504577]
[1772541382016,0.8230097,1968.5,1967.4,1.16504577]
[1772541383519,9.03332238,1968.6,1967.4,1.16504577]
[1772541383520,6.65204759,1968.6,1967.4,1.16504577]
[1772541383817,0.00504759,1968.6,1967.4,1.16504577]
[1772541384018,0.00504759,1968.6,1967.6,1.16504577]
[1772541384419,0.82729454,1968.6,1967.6,1.16504577]
[1772541384619,0.82125134,1968.5,1967.6,1.16504577]
[1772541393128,0.00504759,1968.6,1967.6,1.16504577]
[1772541393427,0.8963698,1969.0,1967.8,1.16504577]
[1772541393628,0.8963698,1969.0,1967.9,1.16504577]
[1772541393818,0.8963698,1969.0,1968.0,1.16504577]
[1772541394327,0.89385197,1969.2,1968.0,1.16504577]
[1772541394524,0.89757902,1969.2,1968.0,1.16504577]
[1772541395424,0.00372705,1969.2,1968.2,1.16504577]
[1772541395623,0.00372705,1969.2,1968.4,1.16504577]
[1772541396626,0.91831808,1969.2,1968.4,1.16504577]
[1772541397225,0.00372705,1969.2,1968.4,1.16504577]
[1772541397519,0.91313425,1969.6,1968.4,1.16504577]
[1772541397722,0.1,1969.5,1968.4,1.16504577]
[1772541398427,0.10472921,1969.5,1968.5,0.25404]
[1772541398733,0.10472921,1969.5,1968.7,1.16504577]
[1772541398931,0.10472921,1969.5,1968.7,1.92416916]
[1772541399226,0.10472921,1969.5,1968.8,1.16504577]
[1772541400236,0.91199567,1969.4,1968.7,1.92416916]
[1772541400630,0.91199567,1969.4,1968.7,0.75912339]
[1772541401030,0.91043553,1969.2,1968.7,0.75912339]
[1772541401831,0.91043553,1969.2,1968.7,0.0071046]
[1772541402231,0.91043553,1969.2,1968.3,1.16504577]
[1772541402432,0.91043553,1969.2,1968.4,1.16504577]
[1772541402935,0.91043553,1969.2,1968.3,0.75761708]
[1772541403124,3.31515317,1969.0,1968.3,0.75761708]
[1772541403329,0.93387838,1968.9,1968.3,1.92843552]
[1772541403535,0.93387838,1968.9,1968.4,1.16504577]
[1772541404329,0.93387838,1968.9,1968.3,0.76338975]
[1772541404733,0.95826894,1968.7,1967.8,1.92089966]
[1772541405336,0.95826894,1968.7,1967.8,1.16584577]
[1772541405638,0.95826894,1968.7,1967.8,1.17197702]
[1772541406036,1.01384401,1968.5,1967.8,1.17197702]
[1772541408040,1.01384401,1968.5,1967.8,0.00693125]
[1772541408241,1.01384401,1968.5,1967.8,1.24019028]
[1772541408443,1.01384401,1968.5,1967.9,1.23325903]
[1772541408641,1.01384401,1968.5,1967.8,1.99871755]
[1772541408942,1.01384401,1968.5,1967.8,0.76545852]
[1772541409643,1.01266476,1968.7,1967.9,1.23325903]
[1772541409945,1.01266476,1968.7,1967.8,0.76545852]
[1772541410243,1.00231448,1968.4,1967.5,1.23325903]
[1772541411144,1.00231448,1968.4,1967.5,1.23790463]
[1772541413841,1.05311073,1968.2,1967.5,1.23790463]
[1772541415542,1.04907534,1967.8,1967.1,1.23325903]
[1772541415749,1.04907534,1967.8,1967.1,2.00484116]
[1772541416542,1.04907534,1967.8,1967.1,2.01103087]
[1772541416749,1.05450506,1967.8,1967.1,2.01103087]
[1772541417960,1.05450506,1967.8,1967.1,0.77777184]
[1772541418152,1.03480584,1967.6,1967.1,0.77777184]
[1772541419651,1.03480584,1967.6,1967.2,1.23325903]
[1772541419850,1.03480584,1967.6,1967.1,0.77777184]
[1772541421151,1.03480584,1967.6,1966.9,1.23325903]
[1772541421354,6.649,1967.7,1966.9,1.23325903]
[1772541421553,1.01165081,1967.6,1966.9,1.23325903]
[1772541421750,1.04738983,1967.2,1966.1,1.23325903]
[1772541421954,1.04738983,1966.9,1966.1,1.23867735]
[1772541422160,1.04738983,1966.6,1965.7,1.23325903]
[1772541422452,0.25426,1966.8,1965.8,1.23325903]
[1772541422453,7.69638983,1966.5,1965.8,1.23325903]
[1772541422948,1.04365699,1966.4,1965.8,1.23325903]
[1772541423147,1.22692746,1966.3,1965.4,1.23325903]
[1772541423557,0.00592996,1966.4,1965.4,1.23325903]
[1772541424358,0.00592996,1966.4,1965.4,1.23792404]
[1772541424554,0.00592996,1966.4,1965.6,1.23325903]
[1772541424856,1.23285742,1966.4,1965.6,0.77807361]
[1772541426456,1.23285742,1966.4,1965.6,2.01133264]
[1772541427356,1.23285742,1966.4,1965.6,0.77807361]
[1772541427557,1.23285742,1966.4,1965.4,0.00466501]
[1772541429058,1.22692746,1966.2,1965.4,0.00466501]
[1772541429259,0.25432,1966.3,1965.4,0.00466501]
[1772541429260,1.22692746,1966.0,1965.4,0.00466501]
[1772541429960,1.22692746,1966.0,1965.2,0.74986988]
[1772541430160,1.22692746,1966.0,1965.2,1.98312891]
[1772541430555,1.22692746,1965.9,1965.3,1.23325903]
[1772541430761,7.87792746,1966.1,1965.3,1.23325903]
[1772541431063,7.87792746,1966.1,1965.3,1.23733583]
[1772541431256,1.22692746,1966.0,1965.3,1.23733583]
[1772541432156,0.26024996,1966.4,1965.3,1.23733583]
[1772541432157,1.22692746,1966.3,1965.3,1.23733583]
[1772541432755,0.00592996,1966.4,1965.3,1.23733583]
[1772541433453,1.23285742,1966.4,1965.3,1.23733583]
[1772541433856,0.00592996,1966.4,1965.3,1.23733583]
[1772541434864,0.00592996,1966.4,1965.5,1.23325903]
[1772541435764,1.23285742,1966.4,1965.5,1.23325903]
[1772541436361,1.23285742,1966.4,1965.3,1.23733583]
[1772541436561,1.22692746,1966.2,1965.3,1.23733583]
[1772541436763,1.22692746,1966.0,1965.3,1.23733583]
[1772541436962,1.22692746,1966.0,1965.3,0.0040768]
[1772541438158,1.22692746,1966.0,1965.3,1.31645343]
[1772541439762,0.00592996,1966.4,1965.3,1.31645343]
[1772541439964,0.00592996,1966.4,1965.5,1.41286689]
[1772541440161,1.39087963,1966.8,1965.5,1.41286689]
[1772541440368,1.39087963,1967.3,1965.9,1.41286689]
[1772541440566,1.39087963,1967.3,1966.1,1.41286689]
[1772541441168,1.3952383,1967.3,1966.1,1.41286689]
[1772541443772,1.39087963,1967.1,1966.1,1.41286689]
[1772541444072,1.39087963,1966.9,1966.1,1.41286689]
[1772541444470,1.39087963,1966.9,1965.9,2.17743942]
[1772541444771,1.39087963,1966.9,1966.0,1.41286689]
[1772541445866,1.39087963,1966.9,1965.9,2.17743942]
[1772541446071,1.39087963,1966.7,1965.9,0.76457253]
[1772541446769,1.39087963,1966.7,1965.9,2.17743942]
[1772541446968,1.39087963,1966.7,1966.0,1.41286689]
[1772541449366,1.39087963,1966.9,1966.0,1.41286689]
[1772541449567,1.39087963,1967.1,1966.0,1.41286689]
[1772541449772,1.3952383,1967.3,1966.0,1.41286689]
[1772541449966,1.3952383,1967.3,1966.2,1.41286689]
[1772541450580,0.00435867,1967.3,1966.2,1.41286689]
[1772541451272,1.39087963,1967.1,1966.2,1.41286689]
[1772541452974,1.39087963,1966.9,1966.2,1.41286689]
[1772541455178,1.39087963,1966.9,1966.0,1.41286689]
[1772541455782,1.39087963,1966.7,1966.0,1.41286689]
[1772541456083,1.39087963,1966.7,1965.9,2.17743942]
[1772541456874,1.39087963,1966.5,1965.9,2.17743942]
[1772541459785,1.39087963,1966.5,1965.9,0.76457253]
[1772541459987,8.04087963,1966.7,1966.0,1.41286689]
[1772541460176,4.20189679,1966.9,1966.0,1.41286689]
[1772541460177,1.39087963,1966.9,1966.0,1.41286689]
[1772541461380,10.85189679,1967.1,1966.0,1.41286689]
[1772541461381,1.39087963,1966.7,1966.0,1.41286689]
[1772541461981,1.39087963,1966.9,1966.0,1.41286689]
[1772541462185,1.39087963,1967.0,1966.0,1.41286689]
[1772541463488,8.04087963,1967.2,1966.0,1.41286689]
[1772541463692,6.52166106,1967.1,1966.0,1.41286689]
[1772541463889,1.39087963,1967.2,1966.0,1.41286689]
[1772541464789,6.65435867,1967.3,1966.2,1.41286689]
[1772541464790,0.00435867,1967.3,1966.2,1.41286689]
[1772541464986,0.00435867,1967.3,1966.4,1.41286689]
[1772541465192,0.00435867,1967.3,1966.5,1.41286689]
[1772541469186,1.23808223,1967.7,1966.5,1.41286689]
[1772541469392,1.23808223,1967.6,1966.5,1.41286689]
[1772541469587,1.49224223,1967.6,1966.5,1.41286689]
[1772541469991,1.23808223,1967.4,1966.5,1.41286689]
[1772541470191,1.23808223,1967.2,1966.5,1.41286689]
[1772541470994,1.2443581,1967.4,1966.5,1.41286689]
[1772541471589,1.23808223,1967.2,1966.4,0.77343001]
[1772541471793,1.23808223,1967.2,1966.5,1.33742106]
[1772541475293,1.23808223,1967.0,1965.9,0.76457253]
[1772541475599,1.23808223,1966.8,1966.0,1.33742106]
[1772541475802,1.23808223,1966.6,1966.0,1.33742106]
[1772541480698,1.23808223,1966.9,1966.0,1.33742106]
[1772541480902,1.23808223,1967.1,1966.0,1.33742106]
[1772541481302,1.23808223,1967.3,1966.0,1.33742106]
[1772541481500,1.23808223,1967.3,1966.1,1.33742106]
[1772541481801,1.23808223,1967.3,1966.1,1.59176106]
[1772541481996,0.00627587,1967.4,1966.1,1.59176106]
[1772541482195,0.00627587,1967.4,1966.1,1.59256106]
[1772541482397,0.00627587,1967.4,1966.1,1.59176106]
[1772541482793,1.23808223,1967.8,1966.4,1.33742106]
[1772541482997,7.75844099,1967.7,1966.5,1.33742106]
[1772541483204,1.23808223,1967.5,1966.5,1.33742106]
[1772541484005,1.24451017,1967.5,1966.5,1.33742106]
[1772541484501,0.00642794,1967.5,1966.7,1.33742106]
[1772541484700,1.23808223,1968.1,1967.0,1.33742106]
[1772541484901,7.88908223,1968.3,1967.2,1.33742106]
[1772541485703,1.23808223,1968.2,1967.2,1.34314231]
[1772541486104,7.89379903,1968.3,1967.2,1.34314231]
[1772541486608,1.24279903,1968.3,1967.2,1.34314231]
[1772541486804,0.0047168,1968.3,1967.2,1.34314231]
[1772541487003,1.24279903,1968.3,1967.4,1.33742106]
[1772541487205,0.0047168,1968.3,1967.5,1.33742106]
[1772541487605,1.24279903,1968.3,1967.5,1.33742106]
[1772541487807,1.24279903,1968.3,1967.6,1.33742106]
[1772541488910,1.23808223,1968.2,1967.4,2.10247563]
[1772541489302,1.23808223,1968.0,1967.2,0.00572125]
[1772541490408,1.23808223,1968.0,1967.2,1.34314231]
[1772541490609,1.23808223,1968.0,1967.2,1.34394231]
[1772541491210,6.65,1968.1,1967.2,1.34394231]
[1772541491401,0.90306387,1968.2,1967.2,1.34394231]
[1772541491601,3.29081921,1968.0,1967.2,0.00652125]
[1772541491912,0.89998219,1967.9,1967.2,0.00652125]
[1772541492412,0.89998219,1967.9,1967.2,1.34394231]
[1772541493606,0.89998219,1967.9,1967.2,0.00652125]
[1772541494203,0.87611712,1967.6,1967.0,0.7642748]
[1772541494812,1.12722972,1967.8,1967.1,1.33742106]
[1772541495011,0.87309972,1967.7,1967.1,1.33742106]
[1772541495205,0.87309972,1968.2,1967.1,1.34159738]
[1772541495415,0.87309972,1968.2,1967.1,1.34239738]
[1772541497713,0.87309972,1968.2,1967.2,1.24880834]
[1772541499212,0.0047168,1968.3,1967.2,1.24880834]
[1772541499912,0.84247893,1968.6,1967.4,1.26797457]
[1772541500217,0.84247893,1968.6,1967.5,1.26797457]
[1772541501015,0.84872356,1968.6,1967.5,1.26797457]
[1772541501213,0.84397724,1968.4,1967.6,1.26797457]
[1772541503816,0.85206868,1968.6,1967.6,1.26797457]
[1772541504519,0.00624463,1968.6,1967.8,1.26797457]
[1772541504825,7.49266161,1969.0,1967.9,1.26797457]
[1772541505112,7.49266161,1969.0,1967.9,1.26877457]
[1772541505317,0.84266161,1969.0,1967.9,1.26877457]
[1772541505718,0.845757,1969.2,1967.9,1.26877457]
[1772541505922,0.85146897,1969.2,1967.9,1.26877457]
[1772541506616,0.85146897,1969.2,1968.0,1.26797457]
[1772541507524,0.84411775,1969.0,1968.0,1.26797457]
[1772541507724,0.84411775,1969.0,1968.1,1.26797457]
[1772541508921,0.84548026,1969.2,1968.1,1.26797457]
[1772541510124,0.84548026,1969.2,1968.2,1.26797457]
[1772541510419,0.84548026,1969.2,1968.3,1.26877457]
[1772541510623,0.82060814,1969.1,1968.3,1.26877457]
[1772541512528,0.82060814,1969.1,1968.3,0.0008]
[1772541513825,0.82060814,1969.1,1968.3,1.26877457]
[1772541516028,0.79484035,1969.2,1968.3,1.26877457]
[1772541516528,0.78912838,1969.0,1968.3,0.0008]
[1772541517726,0.78912838,1969.0,1968.3,1.26877457]
[1772541521034,0.77658366,1969.2,1968.3,1.26877457]
[1772541524137,0.00571197,1969.2,1968.3,1.26877457]
[1772541525234,0.1,1969.5,1968.5,1.26797457]
[1772541525636,6.58377249,1969.5,1968.5,1.26797457]
[1772541525936,7.35492141,1969.5,1968.5,1.26797457]
[1772541526234,0.87604793,1969.5,1968.5,1.27259734]
[1772541526630,0.87194235,1969.5,1968.5,1.27259734]
[1772541526833,0.10489901,1969.5,1968.5,1.27259734]
[1772541527039,0.87137837,1969.5,1968.5,1.27259734]
[1772541527639,0.87137837,1969.5,1968.6,1.26797457]
[1772541527832,0.87137837,1969.5,1968.7,1.23917043]
[1772541528840,0.87137837,1969.5,1968.7,1.23997043]
[1772541529235,0.10489901,1969.5,1968.7,1.23997043]
[1772541530838,0.76002894,1969.8,1968.7,1.23997043]
[1772541531043,6.48792766,1969.7,1968.7,1.23997043]
[1772541531244,0.86435286,1969.9,1968.7,1.23997043]
[1772541531438,7.35157139,1969.8,1968.7,1.23997043]
[1772541531632,0.86435286,1969.8,1968.7,1.23997043]
[1772541531838,0.00576718,1969.8,1968.7,1.23997043]
[1772541532237,6.49326177,1969.8,1968.7,1.23997043]
[1772541532444,0.00576718,1969.8,1968.7,1.23997043]
[1772541532844,6.49313047,1969.8,1968.7,1.23997043]
[1772541533042,0.00576718,1969.8,1968.7,1.23997043]
[1772541533345,0.86379074,1969.7,1968.8,1.23917043]
[1772541534142,0.00576718,1969.8,1968.8,1.23917043]
[1772541534337,6.49626005,1969.8,1968.8,1.23917043]
[1772541534739,0.00576718,1969.8,1968.8,1.23917043]
[1772541537148,0.00576718,1969.8,1969.0,1.99514901]
[1772541537349,0.00576718,1969.8,1969.1,1.23917043]
[1772541537650,0.87311438,1969.7,1969.1,1.23997043]
[1772541538242,0.00576718,1969.8,1969.1,1.23997043]
[1772541538954,0.87089421,1969.8,1969.1,1.23997043]
[1772541541546,0.00576718,1969.8,1969.1,1.23997043]
[1772541541750,0.86117718,1969.8,1969.1,1.23997043]
[1772541544256,12.99525041,1970.2,1969.3,1.23917043]
[1772541544257,0.86032133,1970.2,1969.3,1.23917043]
[1772541544759,0.85689456,1970.0,1969.1,1.23997043]
[1772541545255,0.85635468,1969.8,1969.1,1.23997043]
[1772541545656,0.85635468,1970.4,1969.3,1.23917043]
[1772541546258,0.8456096,1970.8,1969.5,1.23917043]
[1772541546455,0.8456096,1970.6,1969.6,1.23917043]
[1772541546650,0.85019182,1970.6,1969.6,1.23917043]
[1772541548652,0.88616598,1970.4,1969.6,1.23917043]
[1772541549161,0.89077866,1970.6,1969.6,1.23917043]
[1772541549564,0.89077866,1970.6,1969.8,1.23917043]
[1772541550253,0.00458222,1970.6,1969.8,1.23917043]
[1772541551755,0.83208648,1970.6,1969.8,1.23917043]
[1772541553457,0.83208648,1970.6,1969.6,1.23917043]
[1772541554255,0.82076407,1970.4,1969.6,1.23917043]
[1772541555059,0.82076407,1970.4,1969.5,0.77203122]
[1772541555264,0.82076407,1970.4,1969.5,2.01120165]
[1772541555460,0.82553834,1970.6,1969.6,1.23917043]
[1772541555659,0.82553834,1970.6,1969.7,1.23917043]
[1772541556068,0.82033045,1970.6,1969.7,1.23917043]
[1772541556667,0.00458222,1970.6,1969.7,1.23917043]
[1772541557672,0.81593435,1970.9,1969.7,1.23917043]
[1772541557971,0.81013184,1971.1,1969.7,1.23917043]
[1772541558170,0.81013184,1971.1,1970.0,1.26388836]
[1772541558471,0.81013184,1971.3,1970.2,1.26388836]
[1772541558773,0.81369202,1971.3,1970.2,1.26914384]
[1772541559772,0.82335772,1971.2,1970.2,1.26914384]
[1772541561471,0.82335772,1971.2,1969.9,0.75131319]
[1772541561472,0.8235495,1970.8,1969.9,0.75131319]
[1772541561671,0.8235495,1970.5,1969.9,0.75131319]
[1772541561867,0.07667434,1970.1,1969.2,1.2427626]
[1772541562174,0.07667434,1970.0,1969.0,1.28110071]
[1772541562369,6.46972899,1970.0,1969.1,1.28190071]
[1772541562576,6.651,1970.1,1969.1,1.28693846]
[1772541562771,6.651,1970.1,1969.1,0.00583775]
[1772541562772,0.04517577,1969.9,1969.1,0.00583775]
[1772541563076,0.05159404,1969.9,1969.1,0.00583775]
[1772541563472,0.25387,1969.8,1969.1,0.00583775]
[1772541563672,0.0518053,1969.7,1968.7,1.27858595]
[1772541564277,0.03656123,1969.6,1968.7,1.27858595]
[1772541564581,0.03656123,1969.6,1968.7,1.28513265]
[1772541565482,0.03656123,1969.6,1968.7,0.0073467]
[1772541565984,0.02315727,1969.4,1968.7,0.0073467]
[1772541568287,0.02315727,1969.4,1968.7,1.29750728]
[1772541569487,0.02315727,1969.4,1968.7,1.85712024]
[1772541571284,0.25387,1969.8,1968.8,1.29068292]
[1772541571487,6.90687,1969.8,1968.8,1.29068292]
[1772541571687,6.4555313,1969.7,1968.8,1.29068292]
[1772541571888,0.00641827,1969.9,1968.8,1.29068292]
[1772541574391,0.00641827,1969.9,1968.8,7.94368292]
[1772541574591,0.00641827,1969.9,1968.9,1.29202534]
[1772541574791,6.653,1970.6,1969.1,1.29202534]
[1772541575092,6.653,1970.6,1969.3,0.25394]
[1772541575293,6.653,1970.6,1969.4,1.28877243]
[1772541575692,6.65882925,1970.6,1969.4,1.28877243]
[1772541576685,0.25378,1970.5,1969.4,1.28877243]
[1772541577790,0.01411793,1970.4,1969.4,1.28877243]
[1772541580893,0.00582925,1970.6,1969.6,1.28081289]
[1772541581090,0.00582925,1970.6,1969.7,1.28081289]
[1772541581296,6.66646725,1971.0,1969.7,1.28081289]
[1772541581593,0.01446725,1971.0,1969.7,1.28081289]
[1772541582496,0.02001054,1970.9,1969.7,1.28081289]
[1772541583791,0.02119631,1970.7,1969.7,1.28081289]
[1772541583993,0.02119631,1970.6,1969.7,1.28081289]
[1772541585498,0.25381,1970.3,1969.3,1.2769508]
[1772541585689,0.0055079,1970.2,1969.3,1.2769508]
[1772541586294,6.652,1970.1,1969.3,1.2769508]
[1772541586493,0.00633167,1970.0,1969.3,1.2769508]
[1772541588700,0.00633167,1970.0,1969.1,1.29925692]
[1772541588900,6.652,1970.1,1969.1,1.29925692]
[1772541589101,6.46519692,1970.0,1969.1,1.29925692]
[1772541589502,6.90581,1970.3,1969.1,1.29925692]
[1772541589697,6.46444095,1970.2,1969.1,1.29925692]
[1772541589903,6.652,1970.3,1969.1,1.29925692]
[1772541591495,4.22821771,1970.9,1969.3,1.30063671]
[1772541591695,6.46979453,1970.8,1969.5,1.30143671]
[1772541591895,0.2591043,1971.0,1969.5,1.30143671]
[1772541592301,0.2591043,1971.0,1969.5,1.30063671]
[1772541594699,13.11044662,1971.0,1969.5,1.30063671]
[1772541594904,0.25374,1970.8,1969.5,1.30063671]
[1772541595304,0.48231801,1970.8,1969.5,1.30063671]
[1772541595506,4.71053572,1970.8,1969.5,1.30063671]
[1772541595904,4.48195771,1970.8,1969.5,1.30063671]
[1772541596707,17.42208492,1970.8,1969.5,1.30063671]
[1772541596903,0.25377,1970.6,1969.5,1.30063671]
[1772541597112,6.652,1970.5,1969.5,1.30063671]
[1772541601205,6.48591298,1970.4,1969.5,1.30063671]
[1772541601913,0.25381,1970.3,1969.3,1.32110024]
[1772541602112,10.96794069,1970.3,1969.3,1.32110024]
[1772541602311,6.48591298,1970.2,1968.8,1.32110024]
[1772541602508,6.48591298,1970.1,1968.8,1.32190024]
[1772541602711,6.652,1970.0,1968.8,1.32190024]
[1772541603407,6.652,1970.0,1968.8,1.57589024]